[Event "*** MasterClass Titled Tuesday Blitz"]
[Site "Chess.com"]
[Date "2017.12.12"]
[Round "4"]
[White "Vamostodorecto"]
[Black "BjarkeSahl"]
[Result "1-0"]
[WhiteElo "2325"]
[BlackElo "2220"]
[TimeControl "180+2"]
[EndTime "13:51:24 PST"]
[Termination "Vamostodorecto won by resignation"]

1. d4 {[%clk 0:02:48.4]} 1... d5 {[%clk 0:02:53.8]} 2. c4 {[%clk 0:02:48.6]}
2... c6 {[%clk 0:02:54.3]} 3. Nc3 {[%clk 0:02:49.8]} 3... Nf6 {[%clk 0:02:55.1]}
4. Nf3 {[%clk 0:02:50.5]} 4... dxc4 {[%clk 0:02:54.4]} 5. e3 {[%clk 0:02:51.7]}
5... e6 {[%clk 0:02:50.6]} 6. Bxc4 {[%clk 0:02:51.8]} 6... a6 {[%clk 0:02:46.3]}
7. O-O {[%clk 0:02:51.9]} 7... c5 {[%clk 0:02:47.6]} 8. Qe2 {[%clk 0:02:50.5]}
8... cxd4 {[%clk 0:02:48.2]} 9. Rd1 {[%clk 0:02:49.3]} 9... Nc6 {[%clk
0:02:48.6]} 10. exd4 {[%clk 0:02:49.6]} 10... Be7 {[%clk 0:02:42.2]} 11. d5
{[%clk 0:02:49.6]} 11... exd5 {[%clk 0:02:42.5]} 12. Nxd5 {[%clk 0:02:44.9]}
12... Nxd5 {[%clk 0:02:42.7]} 13. Bxd5 {[%clk 0:02:46.8]} 13... Qc7 {[%clk
0:02:39.3]} 14. g3 {[%clk 0:02:28.3]} 14... Kf8 {[%clk 0:01:37.3]} 15. Bf4
{[%clk 0:02:26.4]} 15... Qb6 {[%clk 0:01:35.5]} 16. Re1 {[%clk 0:02:09.1]} 16...
Qc5 {[%clk 0:01:09]} 17. Bb3 {[%clk 0:01:43.4]} 17... Bg4 {[%clk 0:01:04.8]} 18.
Rac1 {[%clk 0:01:35.9]} 18... Qb5 {[%clk 0:00:58.3]} 19. Bc4 {[%clk 0:01:27]}
19... Qh5 {[%clk 0:00:59]} 20. Rc3 {[%clk 0:01:15.4]} 20... Re8 {[%clk
0:00:54.8]} 21. Qd3 {[%clk 0:00:56.6]} 21... Rd8 {[%clk 0:00:45.5]} 22. Qe4
{[%clk 0:00:50.9]} 22... Bf5 {[%clk 0:00:33.6]} 23. Qe3 {[%clk 0:00:47.4]} 23...
h6 {[%clk 0:00:26]} 24. Bxa6 {[%clk 0:00:44.8]} 24... g5 {[%clk 0:00:20.6]} 25.
Bc7 {[%clk 0:00:41.4]} 25... Rd7 {[%clk 0:00:15.4]} 26. Bxb7 {[%clk 0:00:40.4]}
26... Rxc7 {[%clk 0:00:12.7]} 27. Bxc6 {[%clk 0:00:40.4]} 27... Bf6 {[%clk
0:00:02.3]} 28. Rcc1 {[%clk 0:00:28]} 28... Kg7 {[%clk 0:00:03]} 29. Nd4 {[%clk
0:00:26]} 29... Bh3 {[%clk 0:00:03.9]} 30. Qf3 {[%clk 0:00:24.4]} 30... Re7
{[%clk 0:00:03.5]} 1-0

[Event "*** MasterClass Titled Tuesday Blitz"]
[Site "Chess.com"]
[Date "2017.12.12"]
[Round "4"]
[White "TheBigBoss04"]
[Black "Msb2"]
[Result "0-1"]
[WhiteElo "2490"]
[BlackElo "2670"]
[TimeControl "180+2"]
[EndTime "13:51:27 PST"]
[Termination "Msb2 won on time"]

1. Nf3 {[%clk 0:03:01.3]} 1... d5 {[%clk 0:03:00.6]} 2. g3 {[%clk 0:02:59.9]}
2... Bg4 {[%clk 0:03:01.3]} 3. Ne5 {[%clk 0:02:56.9]} 3... Bh5 {[%clk 0:03:01]}
4. Bg2 {[%clk 0:02:57.6]} 4... Nd7 {[%clk 0:03:00.2]} 5. Nf3 {[%clk 0:02:51.9]}
5... Ngf6 {[%clk 0:02:56.1]} 6. d3 {[%clk 0:02:51.1]} 6... e5 {[%clk 0:02:51.9]}
7. O-O {[%clk 0:02:50.8]} 7... Bd6 {[%clk 0:02:49.8]} 8. Qe1 {[%clk 0:02:37.9]}
8... O-O {[%clk 0:02:48.7]} 9. e4 {[%clk 0:02:38]} 9... c6 {[%clk 0:02:50.1]}
10. Nbd2 {[%clk 0:02:32.8]} 10... Re8 {[%clk 0:02:48.6]} 11. h3 {[%clk
0:02:31.8]} 11... Nc5 {[%clk 0:02:44.4]} 12. Nh4 {[%clk 0:02:29.3]} 12... Bf8
{[%clk 0:02:42.6]} 13. Nb3 {[%clk 0:01:55]} 13... dxe4 {[%clk 0:02:17.2]} 14.
dxe4 {[%clk 0:01:47.7]} 14... Ne6 {[%clk 0:02:10.6]} 15. Nf5 {[%clk 0:01:15.4]}
15... a5 {[%clk 0:02:04.7]} 16. a4 {[%clk 0:01:07.1]} 16... Qc7 {[%clk
0:02:01.8]} 17. Bd2 {[%clk 0:00:59.4]} 17... b6 {[%clk 0:02:01.4]} 18. Be3
{[%clk 0:00:35.9]} 18... Nd7 {[%clk 0:02:01.1]} 19. Nd2 {[%clk 0:00:26.7]} 19...
f6 {[%clk 0:02:00.4]} 20. Bf3 {[%clk 0:00:22]} 20... Bf7 {[%clk 0:01:59.8]} 21.
h4 {[%clk 0:00:21.1]} 21... Rad8 {[%clk 0:01:56.4]} 22. Qe2 {[%clk 0:00:21.8]}
22... Ndc5 {[%clk 0:01:51.2]} 23. Rfd1 {[%clk 0:00:22.7]} 23... g6 {[%clk
0:01:35.6]} 24. Nh6+ {[%clk 0:00:23.5]} 24... Bxh6 {[%clk 0:01:36.8]} 25. Bxh6
{[%clk 0:00:24.2]} 25... Nd4 {[%clk 0:01:38.4]} 26. Qf1 {[%clk 0:00:19.4]} 26...
Nxc2 {[%clk 0:01:39.8]} 27. Rac1 {[%clk 0:00:20.3]} 27... Nd4 {[%clk 0:01:40.3]}
28. Bg2 {[%clk 0:00:15]} 28... Ndb3 {[%clk 0:01:30.3]} 29. Nxb3 {[%clk
0:00:14.9]} 29... Bxb3 {[%clk 0:01:26.2]} 30. Rxd8 {[%clk 0:00:13.9]} 30... Rxd8
{[%clk 0:01:28.1]} 31. Be3 {[%clk 0:00:10.3]} 31... Ne6 {[%clk 0:01:18.4]} 32.
h5 {[%clk 0:00:10.3]} 32... Nd4 {[%clk 0:01:18.4]} 33. hxg6 {[%clk 0:00:09.7]}
33... hxg6 {[%clk 0:01:20.3]} 34. Rc3 {[%clk 0:00:09.3]} 34... Be6 {[%clk
0:01:17.1]} 35. f4 {[%clk 0:00:09.1]} 35... Bg4 {[%clk 0:01:14.1]} 36. Qc4+
{[%clk 0:00:05.4]} 36... Kg7 {[%clk 0:01:03.6]} 37. Kf2 {[%clk 0:00:05.6]} 37...
Be6 {[%clk 0:01:02.6]} 38. Qf1 {[%clk 0:00:04.1]} 38... c5 {[%clk 0:01:03]} 39.
Qc1 {[%clk 0:00:04.6]} 39... Rh8 {[%clk 0:01:02.9]} 0-1

[Event "*** MasterClass Titled Tuesday Blitz"]
[Site "Chess.com"]
[Date "2017.12.12"]
[Round "4"]
[White "TST2014"]
[Black "windking123"]
[Result "0-1"]
[WhiteElo "2260"]
[BlackElo "2384"]
[TimeControl "180+2"]
[EndTime "13:51:34 PST"]
[Termination "windking123 won by resignation"]

1. d4 {[%clk 0:03:01.9]} 1... d5 {[%clk 0:02:58.6]} 2. c4 {[%clk 0:03:02.4]}
2... e6 {[%clk 0:02:59.6]} 3. Nf3 {[%clk 0:03:03.4]} 3... Nf6 {[%clk 0:03:00.7]}
4. Nc3 {[%clk 0:03:04.3]} 4... Be7 {[%clk 0:03:00.7]} 5. Bf4 {[%clk 0:03:03.2]}
5... O-O {[%clk 0:03:01.6]} 6. e3 {[%clk 0:03:01.8]} 6... b6 {[%clk 0:03:01.2]}
7. cxd5 {[%clk 0:02:58.6]} 7... Nxd5 {[%clk 0:02:59.9]} 8. Nxd5 {[%clk
0:02:57.8]} 8... exd5 {[%clk 0:03:01.8]} 9. Bd3 {[%clk 0:02:55.7]} 9... Bb4+
{[%clk 0:02:59.2]} 10. Nd2 {[%clk 0:02:47.9]} 10... c5 {[%clk 0:02:51.9]} 11.
dxc5 {[%clk 0:02:39]} 11... bxc5 {[%clk 0:02:51.6]} 12. a3 {[%clk 0:02:37.2]}
12... Ba5 {[%clk 0:02:44.3]} 13. Qc2 {[%clk 0:02:37.4]} 13... h6 {[%clk
0:02:36.4]} 14. Qxc5 {[%clk 0:02:33.6]} 14... Bxd2+ {[%clk 0:02:37.4]} 15. Kxd2
{[%clk 0:02:34]} 15... Ba6 {[%clk 0:02:27.8]} 16. Rhd1 {[%clk 0:02:19.7]} 16...
Bxd3 {[%clk 0:02:26.6]} 17. Kxd3 {[%clk 0:02:20.5]} 17... Qf6 {[%clk 0:02:20.4]}
18. Qd4 {[%clk 0:02:15.5]} 18... Qg6+ {[%clk 0:02:19.2]} 19. Ke2 {[%clk
0:02:14.2]} 19... Nc6 {[%clk 0:02:11.2]} 20. Qd3 {[%clk 0:01:56.5]} 20... Qxg2
{[%clk 0:02:03]} 21. Qxd5 {[%clk 0:01:57]} 21... Qg4+ {[%clk 0:01:47.7]} 22. Qf3
{[%clk 0:01:57.2]} 22... Qe6 {[%clk 0:01:42.4]} 23. Rac1 {[%clk 0:01:54.6]}
23... Ne5 {[%clk 0:01:28.7]} 24. Qg3 {[%clk 0:01:39.9]} 24... Qa6+ {[%clk
0:01:20.4]} 25. Ke1 {[%clk 0:01:37.1]} 25... Nd3+ {[%clk 0:01:09.7]} 26. Rxd3
{[%clk 0:01:38.5]} 26... Qxd3 {[%clk 0:01:11.6]} 27. Bxh6 {[%clk 0:01:39.3]}
27... Qh7 {[%clk 0:01:05.6]} 28. Bf4 {[%clk 0:01:34.1]} 28... Rac8 {[%clk
0:01:02.5]} 29. Bc7 {[%clk 0:01:33.4]} 29... Qe4 {[%clk 0:00:58.9]} 30. Ke2
{[%clk 0:01:26.1]} 30... Rfe8 {[%clk 0:00:53.9]} 31. Be5 {[%clk 0:01:13.3]}
31... Rc2+ {[%clk 0:00:30.2]} 32. Rxc2 {[%clk 0:01:12.8]} 32... Qxc2+ {[%clk
0:00:32.1]} 33. Kf1 {[%clk 0:01:11.2]} 33... Qd1+ {[%clk 0:00:33]} 34. Kg2
{[%clk 0:01:11.6]} 34... Qd5+ {[%clk 0:00:33.6]} 35. f3 {[%clk 0:00:56.8]} 35...
Qxe5 {[%clk 0:00:34.7]} 36. Qxe5 {[%clk 0:00:57.8]} 36... Rxe5 {[%clk
0:00:36.6]} 37. e4 {[%clk 0:00:59.5]} 37... Rb5 {[%clk 0:00:37]} 38. b4 {[%clk
0:00:59.9]} 38... a5 {[%clk 0:00:38.8]} 39. bxa5 {[%clk 0:01:00.9]} 39... Rxa5
{[%clk 0:00:40.7]} 40. Kg3 {[%clk 0:01:02.4]} 40... Rxa3 {[%clk 0:00:42.6]} 41.
Kf4 {[%clk 0:01:04]} 41... f6 {[%clk 0:00:44]} 42. h4 {[%clk 0:01:05.6]} 42...
Kf7 {[%clk 0:00:45.5]} 43. h5 {[%clk 0:01:07.2]} 43... Ra1 {[%clk 0:00:46.2]}
44. Kg4 {[%clk 0:01:06.7]} 44... Rg1+ {[%clk 0:00:46.1]} 45. Kf4 {[%clk
0:01:07.2]} 45... Rg5 {[%clk 0:00:46.8]} 46. e5 {[%clk 0:01:08.4]} 46... Rxe5
{[%clk 0:00:48.5]} 47. Kg4 {[%clk 0:01:09.2]} 47... Rg5+ {[%clk 0:00:50.2]} 48.
Kh4 {[%clk 0:01:09.9]} 48... Ke6 {[%clk 0:00:50.4]} 49. f4 {[%clk 0:01:11.1]}
49... Rg1 {[%clk 0:00:51.1]} 50. h6 {[%clk 0:01:12.3]} 50... gxh6 {[%clk
0:00:52.4]} 51. Kh5 {[%clk 0:01:13.9]} 51... Kf5 {[%clk 0:00:53.3]} 52. Kxh6
{[%clk 0:01:14.7]} 52... Kxf4 {[%clk 0:00:54.7]} 0-1

[Event "*** MasterClass Titled Tuesday Blitz"]
[Site "Chess.com"]
[Date "2017.12.12"]
[Round "4"]
[White "Kacparov"]
[Black "amaidel"]
[Result "1/2-1/2"]
[WhiteElo "2584"]
[BlackElo "2490"]
[TimeControl "180+2"]
[EndTime "13:51:38 PST"]
[Termination "Game drawn by repetition"]

1. e4 {[%clk 0:02:59.1]} 1... e5 {[%clk 0:03:00.7]} 2. Nf3 {[%clk 0:02:49]} 2...
Nf6 {[%clk 0:03:00]} 3. Nc3 {[%clk 0:02:35.6]} 3... Bb4 {[%clk 0:02:59.1]} 4.
Nxe5 {[%clk 0:02:35.2]} 4... O-O {[%clk 0:02:59.3]} 5. Nd3 {[%clk 0:02:33.7]}
5... Bxc3 {[%clk 0:02:59.5]} 6. dxc3 {[%clk 0:02:34.8]} 6... Nxe4 {[%clk
0:03:00.5]} 7. Be2 {[%clk 0:02:36]} 7... d5 {[%clk 0:03:00]} 8. O-O {[%clk
0:02:37.1]} 8... c6 {[%clk 0:02:59.2]} 9. Bf3 {[%clk 0:02:37.3]} 9... Bf5 {[%clk
0:02:58.7]} 10. Re1 {[%clk 0:02:38.3]} 10... Nd7 {[%clk 0:02:58.5]} 11. Be3
{[%clk 0:02:38]} 11... Re8 {[%clk 0:02:58.4]} 12. Nf4 {[%clk 0:02:38]} 12... Ne5
{[%clk 0:02:57.3]} 13. Be2 {[%clk 0:02:38]} 13... h6 {[%clk 0:02:55.3]} 14. f3
{[%clk 0:02:36.8]} 14... Nd6 {[%clk 0:02:55.5]} 15. b3 {[%clk 0:02:19.5]} 15...
Nec4 {[%clk 0:02:43.8]} 16. Bxc4 {[%clk 0:02:17.7]} 16... dxc4 {[%clk
0:02:43.1]} 17. Bc5 {[%clk 0:02:17.3]} 17... Nb5 {[%clk 0:02:40.1]} 18. Rxe8+
{[%clk 0:02:02.4]} 18... Qxe8 {[%clk 0:02:40.3]} 19. bxc4 {[%clk 0:02:03.4]}
19... Nxc3 {[%clk 0:02:26]} 20. Qd2 {[%clk 0:02:04.3]} 20... Na4 {[%clk
0:02:16.9]} 21. Bf2 {[%clk 0:02:03.1]} 21... Nb6 {[%clk 0:02:12.6]} 22. Qa5
{[%clk 0:01:57]} 22... Bxc2 {[%clk 0:02:10]} 23. Re1 {[%clk 0:01:53.7]} 23...
Qd8 {[%clk 0:02:07.3]} 24. Qc3 {[%clk 0:01:50.5]} 24... Bf5 {[%clk 0:02:01.5]}
25. Nh5 {[%clk 0:01:48.3]} 25... Qg5 {[%clk 0:01:55.2]} 26. g4 {[%clk
0:01:45.4]} 26... Rd8 {[%clk 0:01:23.2]} 27. h4 {[%clk 0:01:42.8]} 27... Qg6
{[%clk 0:01:17]} 28. Nf4 {[%clk 0:01:36.8]} 28... Qd6 {[%clk 0:01:17.2]} 29. Nh5
{[%clk 0:01:32.8]} 29... Qg6 {[%clk 0:01:12.6]} 30. Qe5 {[%clk 0:01:27.8]} 30...
Bd7 {[%clk 0:01:10]} 31. Qc7 {[%clk 0:01:20.5]} 31... Re8 {[%clk 0:01:07.4]} 32.
Rxe8+ {[%clk 0:01:20.8]} 32... Bxe8 {[%clk 0:01:09.3]} 33. Qxb7 {[%clk 0:01:20]}
33... Nxc4 {[%clk 0:01:06.8]} 34. Qxa7 {[%clk 0:01:19.6]} 34... Ne5 {[%clk
0:01:06.6]} 35. Qe3 {[%clk 0:01:18.9]} 35... Qe6 {[%clk 0:01:06.2]} 36. Nf4
{[%clk 0:01:19.2]} 36... Qd6 {[%clk 0:01:03.1]} 37. Kg2 {[%clk 0:01:18.5]} 37...
c5 {[%clk 0:01:01.3]} 38. Qxc5 {[%clk 0:01:15.7]} 38... Qxc5 {[%clk 0:01:01.9]}
39. Bxc5 {[%clk 0:01:16.5]} 39... Bc6 {[%clk 0:01:02.9]} 40. Kg3 {[%clk
0:01:16.9]} 40... Nxf3 {[%clk 0:01:02.7]} 41. h5 {[%clk 0:01:11.4]} 41... Ne5
{[%clk 0:01:03.2]} 42. Bd4 {[%clk 0:01:08.8]} 42... Nc4 {[%clk 0:01:02.3]} 43.
Nd3 {[%clk 0:01:08.3]} 43... f6 {[%clk 0:01:02.1]} 44. Nc5 {[%clk 0:01:08.5]}
44... Kf7 {[%clk 0:01:02.3]} 45. a4 {[%clk 0:01:09.7]} 45... Na5 {[%clk
0:01:01.3]} 46. Bc3 {[%clk 0:01:09.9]} 46... Nb7 {[%clk 0:01:02.1]} 47. Nxb7
{[%clk 0:01:10]} 47... Bxb7 {[%clk 0:01:04]} 48. a5 {[%clk 0:01:11.4]} 48... Ke6
{[%clk 0:01:04.4]} 49. Kf4 {[%clk 0:01:12.7]} 49... Bc8 {[%clk 0:01:03.9]} 50.
Bb4 {[%clk 0:01:13.7]} 50... Kf7 {[%clk 0:01:02.8]} 51. Bc5 {[%clk 0:01:14.8]}
51... Kg8 {[%clk 0:01:02.9]} 52. Bb4 {[%clk 0:01:12.3]} 52... Kf7 {[%clk
0:01:03.9]} 53. Bc5 {[%clk 0:01:12.7]} 53... Kg8 {[%clk 0:01:04.9]} 54. Kf3
{[%clk 0:01:13.8]} 54... Kf7 {[%clk 0:01:06]} 55. Bb4 {[%clk 0:01:14.8]} 55...
Kg8 {[%clk 0:01:07]} 56. Bc5 {[%clk 0:01:15.9]} 56... Kf7 {[%clk 0:01:08.1]} 57.
Bb4 {[%clk 0:01:17]} 57... Kg8 {[%clk 0:01:08.1]} 58. Kf4 {[%clk 0:01:18.2]}
58... Kf7 {[%clk 0:01:08.6]} 59. Bc5 {[%clk 0:01:19.3]} 59... Kg8 {[%clk
0:01:09.5]} 60. Bb4 {[%clk 0:01:20.5]} 60... Kf7 {[%clk 0:01:10.6]} 61. Bc5
{[%clk 0:01:21.5]} 61... Kg8 {[%clk 0:01:11.7]} 62. Bb4 {[%clk 0:01:22.7]} 62...
Kf7 {[%clk 0:01:12.8]} 1/2-1/2

[Event "*** MasterClass Titled Tuesday Blitz"]
[Site "Chess.com"]
[Date "2017.12.12"]
[Round "4"]
[White "daro94"]
[Black "Vincent_Vega95"]
[Result "1-0"]
[WhiteElo "2658"]
[BlackElo "2565"]
[TimeControl "180+2"]
[EndTime "13:51:41 PST"]
[Termination "daro94 won by resignation"]

1. e4 {[%clk 0:03:01]} 1... c5 {[%clk 0:03:00.6]} 2. Nf3 {[%clk 0:03:02.3]} 2...
d6 {[%clk 0:03:01.5]} 3. Bb5+ {[%clk 0:03:03.6]} 3... Bd7 {[%clk 0:03:02]} 4.
Bxd7+ {[%clk 0:02:59.9]} 4... Qxd7 {[%clk 0:03:03.8]} 5. O-O {[%clk 0:03:01]}
5... Nf6 {[%clk 0:03:04.9]} 6. Qe2 {[%clk 0:03:02.4]} 6... Nc6 {[%clk
0:03:05.6]} 7. c3 {[%clk 0:03:02.7]} 7... e6 {[%clk 0:03:06.7]} 8. d4 {[%clk
0:03:02]} 8... cxd4 {[%clk 0:03:08.6]} 9. cxd4 {[%clk 0:03:03.9]} 9... d5 {[%clk
0:03:10]} 10. e5 {[%clk 0:03:05.5]} 10... Ne4 {[%clk 0:03:11.6]} 11. Be3 {[%clk
0:03:06.9]} 11... Be7 {[%clk 0:03:02.8]} 12. Ne1 {[%clk 0:03:08]} 12... f6
{[%clk 0:03:03.2]} 13. f3 {[%clk 0:03:08.8]} 13... Ng5 {[%clk 0:03:04.1]} 14.
Nd3 {[%clk 0:02:56.6]} 14... O-O {[%clk 0:03:02.1]} 15. Nd2 {[%clk 0:02:57.5]}
15... Nf7 {[%clk 0:03:00.6]} 16. f4 {[%clk 0:02:58.7]} 16... f5 {[%clk
0:03:01.5]} 17. Nf3 {[%clk 0:02:59.6]} 17... Rac8 {[%clk 0:02:59.6]} 18. Bd2
{[%clk 0:02:57.9]} 18... b6 {[%clk 0:02:57]} 19. h3 {[%clk 0:02:52.1]} 19... Kh8
{[%clk 0:02:41.9]} 20. Kh2 {[%clk 0:02:48.2]} 20... Qb7 {[%clk 0:02:37.2]} 21.
Nf2 {[%clk 0:02:24.5]} 21... Nb8 {[%clk 0:02:29.8]} 22. Rfc1 {[%clk 0:02:16.1]}
22... Qa6 {[%clk 0:02:30.3]} 23. Qxa6 {[%clk 0:02:14.3]} 23... Nxa6 {[%clk
0:02:31.6]} 24. Nd3 {[%clk 0:02:15.7]} 24... Kg8 {[%clk 0:02:30.5]} 25. g4
{[%clk 0:02:15.7]} 25... Nh6 {[%clk 0:02:30.5]} 26. Kg3 {[%clk 0:02:16.5]} 26...
g6 {[%clk 0:02:29.1]} 27. a4 {[%clk 0:01:56.5]} 27... Nf7 {[%clk 0:02:18.7]} 28.
b4 {[%clk 0:01:44.5]} 28... Rc4 {[%clk 0:02:12.1]} 29. b5 {[%clk 0:01:43.4]}
29... Nb8 {[%clk 0:02:11.7]} 30. Nb2 {[%clk 0:01:44.3]} 30... Rcc8 {[%clk
0:02:09.6]} 31. Nd3 {[%clk 0:01:36.8]} 31... Rfd8 {[%clk 0:02:03]} 32. Bb4
{[%clk 0:01:23]} 32... Kf8 {[%clk 0:02:01.2]} 33. Bxe7+ {[%clk 0:01:14.5]} 33...
Kxe7 {[%clk 0:02:03]} 34. Nb4 {[%clk 0:01:16.3]} 34... Kd7 {[%clk 0:01:44.8]}
35. Kh4 {[%clk 0:01:07]} 35... h6 {[%clk 0:01:43.8]} 36. Kg3 {[%clk 0:01:08]}
36... Rxc1 {[%clk 0:01:32.6]} 37. Rxc1 {[%clk 0:01:09.9]} 37... Rc8 {[%clk
0:01:34.5]} 38. Rxc8 {[%clk 0:01:08.5]} 38... Kxc8 {[%clk 0:01:36.3]} 39. Nh4
{[%clk 0:01:06.8]} 39... Nh8 {[%clk 0:01:37.3]} 40. Ng2 {[%clk 0:00:40.6]} 40...
Kb7 {[%clk 0:01:25.2]} 41. gxf5 {[%clk 0:00:38.9]} 41... gxf5 {[%clk 0:01:22.6]}
42. Kh4 {[%clk 0:00:40.4]} 42... a5 {[%clk 0:01:09.1]} 43. Nc2 {[%clk
0:00:33.7]} 43... Kc7 {[%clk 0:00:52.6]} 44. Kh5 {[%clk 0:00:35]} 44... Kd7
{[%clk 0:00:53.9]} 45. Kxh6 {[%clk 0:00:35.8]} 45... Ke7 {[%clk 0:00:55.3]} 46.
Kg7 {[%clk 0:00:35]} 46... Nf7 {[%clk 0:00:56]} 47. Nh4 {[%clk 0:00:30.8]} 47...
Nd7 {[%clk 0:00:56.2]} 48. Ng6+ {[%clk 0:00:30.9]} 48... Ke8 {[%clk 0:00:57.5]}
49. h4 {[%clk 0:00:29.6]} 1-0

[Event "*** MasterClass Titled Tuesday Blitz"]
[Site "Chess.com"]
[Date "2017.12.12"]
[Round "4"]
[White "Scott-fox21"]
[Black "Kawhi_Leonard2"]
[Result "0-1"]
[WhiteElo "2137"]
[BlackElo "2267"]
[TimeControl "180+2"]
[EndTime "13:51:45 PST"]
[Termination "Kawhi_Leonard2 won on time"]

1. d4 {[%clk 0:03:01.9]} 1... Nf6 {[%clk 0:02:59.2]} 2. c4 {[%clk 0:03:02.5]}
2... c5 {[%clk 0:02:59.5]} 3. d5 {[%clk 0:03:03.5]} 3... e6 {[%clk 0:03:01.4]}
4. Nc3 {[%clk 0:03:04.2]} 4... exd5 {[%clk 0:03:03.3]} 5. cxd5 {[%clk
0:03:05.8]} 5... d6 {[%clk 0:03:04.6]} 6. Nf3 {[%clk 0:03:07.4]} 6... g6 {[%clk
0:03:05.9]} 7. Qa4+ {[%clk 0:03:08.8]} 7... Bd7 {[%clk 0:03:05.7]} 8. Qb3 {[%clk
0:03:09.6]} 8... b5 {[%clk 0:03:06.2]} 9. Nxb5 {[%clk 0:03:04.6]} 9... Bxb5
{[%clk 0:03:03.5]} 10. Qxb5+ {[%clk 0:03:05.3]} 10... Nbd7 {[%clk 0:03:04.7]}
11. Bg5 {[%clk 0:03:02.9]} 11... Rb8 {[%clk 0:03:03.7]} 12. Qa4 {[%clk
0:02:51.4]} 12... Rxb2 {[%clk 0:03:03.1]} 13. e4 {[%clk 0:02:46]} 13... Rb4
{[%clk 0:02:56.7]} 14. Qc2 {[%clk 0:02:45.9]} 14... h6 {[%clk 0:02:12.7]} 15.
Bxf6 {[%clk 0:02:14.8]} 15... Qxf6 {[%clk 0:02:06]} 16. Rb1 {[%clk 0:02:11.9]}
16... Rxb1+ {[%clk 0:02:05.9]} 17. Qxb1 {[%clk 0:02:13.8]} 17... Bg7 {[%clk
0:02:06.1]} 18. Be2 {[%clk 0:02:13.4]} 18... Qc3+ {[%clk 0:02:02.4]} 19. Kf1
{[%clk 0:02:08.7]} 19... O-O {[%clk 0:02:02.8]} 20. g3 {[%clk 0:02:07.3]} 20...
Rb8 {[%clk 0:02:02.2]} 21. Qd1 {[%clk 0:02:00.7]} 21... Rb2 {[%clk 0:01:59.5]}
22. Kg2 {[%clk 0:02:01.4]} 22... Rxa2 {[%clk 0:01:58.2]} 23. Re1 {[%clk
0:01:49.4]} 23... a5 {[%clk 0:01:57.1]} 24. Bb5 {[%clk 0:01:33.2]} 24... Ne5
{[%clk 0:01:53.6]} 25. Nxe5 {[%clk 0:01:28.2]} 25... Bxe5 {[%clk 0:01:53.5]} 26.
Rf1 {[%clk 0:01:17.4]} 26... Qb4 {[%clk 0:01:49.2]} 27. Bd3 {[%clk 0:01:06.2]}
27... a4 {[%clk 0:01:49.2]} 28. Qg4 {[%clk 0:01:04.9]} 28... Kg7 {[%clk
0:01:41.9]} 29. Rb1 {[%clk 0:00:56.1]} 29... Qd4 {[%clk 0:01:39.4]} 30. Qf3
{[%clk 0:00:55.7]} 30... Rd2 {[%clk 0:01:24.8]} 31. Rb7 {[%clk 0:00:40.8]} 31...
Bf6 {[%clk 0:01:25.8]} 32. Bb5 {[%clk 0:00:41.4]} 32... Rb2 {[%clk 0:01:13.3]}
33. Qf4 {[%clk 0:00:12.9]} 33... a3 {[%clk 0:00:57.2]} 34. e5 {[%clk 0:00:13.7]}
34... Qxe5 {[%clk 0:00:42.6]} 35. Qf3 {[%clk 0:00:11.7]} 35... a2 {[%clk
0:00:31.1]} 36. Qa3 {[%clk 0:00:06.2]} 36... a1=Q {[%clk 0:00:21.1]} 0-1

[Event "*** MasterClass Titled Tuesday Blitz"]
[Site "Chess.com"]
[Date "2017.12.12"]
[Round "4"]
[White "champ1000"]
[Black "Alliswell998"]
[Result "1-0"]
[WhiteElo "2257"]
[BlackElo "2338"]
[TimeControl "180+2"]
[EndTime "13:52:06 PST"]
[Termination "champ1000 won on time"]

1. e4 {[%clk 0:03:01.6]} 1... c5 {[%clk 0:03:01.2]} 2. Nf3 {[%clk 0:03:01.6]}
2... d6 {[%clk 0:03:02.7]} 3. d4 {[%clk 0:03:02.9]} 3... cxd4 {[%clk 0:03:04.6]}
4. Nxd4 {[%clk 0:03:04.5]} 4... Nf6 {[%clk 0:03:05.9]} 5. Nc3 {[%clk 0:03:06.1]}
5... a6 {[%clk 0:03:07.3]} 6. Bg5 {[%clk 0:03:06.7]} 6... e6 {[%clk 0:03:08.4]}
7. f4 {[%clk 0:03:06.7]} 7... Be7 {[%clk 0:03:09.9]} 8. Qf3 {[%clk 0:03:06.9]}
8... h6 {[%clk 0:03:10.5]} 9. Bh4 {[%clk 0:03:07.5]} 9... Nbd7 {[%clk
0:03:11.6]} 10. O-O-O {[%clk 0:03:07]} 10... Qc7 {[%clk 0:03:11.7]} 11. f5
{[%clk 0:03:06.1]} 11... Ne5 {[%clk 0:02:06.1]} 12. Qh3 {[%clk 0:03:06.2]} 12...
O-O {[%clk 0:02:07.5]} 13. fxe6 {[%clk 0:03:06.3]} 13... fxe6 {[%clk 0:02:08.3]}
14. Kb1 {[%clk 0:02:16.6]} 14... Bd7 {[%clk 0:01:45.2]} 15. Nxe6 {[%clk
0:02:13]} 15... Qc8 {[%clk 0:01:36.4]} 16. Nd5 {[%clk 0:02:14.2]} 16... Bd8
{[%clk 0:01:30.1]} 17. Ndf4 {[%clk 0:01:33.3]} 17... g5 {[%clk 0:01:17.2]} 18.
Bxg5 {[%clk 0:01:07.8]} 18... hxg5 {[%clk 0:01:16.4]} 19. Qh6 {[%clk 0:01:09.4]}
19... Bxe6 {[%clk 0:01:13.4]} 20. Qxg5+ {[%clk 0:01:10]} 20... Kf7 {[%clk
0:01:09.5]} 21. Rxd6 {[%clk 0:01:09.9]} 21... Bc7 {[%clk 0:00:41]} 22. Rxe6
{[%clk 0:01:07.5]} 22... Qxe6 {[%clk 0:00:41.5]} 23. Nxe6 {[%clk 0:01:07.3]}
23... Kxe6 {[%clk 0:00:43.4]} 24. g3 {[%clk 0:00:38.5]} 24... Ke7 {[%clk
0:00:37.7]} 25. Bh3 {[%clk 0:00:36.4]} 25... Rad8 {[%clk 0:00:32.9]} 26. Rf1
{[%clk 0:00:29.1]} 26... Nd7 {[%clk 0:00:22]} 27. Bxd7 {[%clk 0:00:22.2]} 27...
Rxd7 {[%clk 0:00:22.4]} 28. e5 {[%clk 0:00:21.5]} 28... Rf7 {[%clk 0:00:11.3]}
29. exf6+ {[%clk 0:00:20.4]} 29... Kd6 {[%clk 0:00:11.4]} 30. Rd1+ {[%clk
0:00:20.3]} 30... Kc6 {[%clk 0:00:12.2]} 31. Rxd7 {[%clk 0:00:20.4]} 31... Rxd7
{[%clk 0:00:11.5]} 32. a3 {[%clk 0:00:20.8]} 32... Bd6 {[%clk 0:00:11.5]} 33. h4
{[%clk 0:00:19.8]} 33... Rf7 {[%clk 0:00:10.9]} 34. Qg6 {[%clk 0:00:20.7]} 34...
Rf8 {[%clk 0:00:11.6]} 35. g4 {[%clk 0:00:22]} 35... Kd7 {[%clk 0:00:13]} 36. g5
{[%clk 0:00:23.2]} 36... Ke6 {[%clk 0:00:14.5]} 37. h5 {[%clk 0:00:24.2]} 37...
Be5 {[%clk 0:00:13]} 38. h6 {[%clk 0:00:25.2]} 38... Bf4 {[%clk 0:00:06.2]} 39.
Qg7 {[%clk 0:00:25.5]} 39... Rf7 {[%clk 0:00:05.7]} 40. Qg8 {[%clk 0:00:21.1]}
1-0